fUSD/lending_fUSD_20240519
["ID","MTS","AMOUNT","RATE_DAILY","PERIOD"]
[327441290,1716077442740,-500.0,0.00027397,2]
[327441291,1716077442752,-500.0,0.00027397,2]
[327441292,1716077442762,-500.0,0.00027397,2]
[327441293,1716077442771,-500.0,0.00027397,2]
[327441294,1716077442780,-564.47,0.00027397,2]
[327441295,1716077442790,-500.0,0.00027397,2]
[327441296,1716077442799,-500.0,0.00027397,2]
[327441297,1716077442809,-500.0,0.00027397,2]
[327441298,1716077442819,-500.0,0.00027397,2]
[327441299,1716077442828,-500.0,0.00027397,2]
[327441300,1716077442838,-500.0,0.00027397,2]
[327441301,1716077442847,-500.0,0.00027397,2]
[327441302,1716077442858,-500.0,0.00027397,2]
[327441303,1716077442867,-500.0,0.00027397,2]
[327441304,1716077442877,-1055.26,0.00027397,2]
[327441305,1716077442886,-500.0,0.00027397,2]
[327441306,1716077442895,-1647.33,0.00027397,2]
[327441307,1716077442905,-500.0,0.00027397,2]
[327441308,1716077442914,-500.0,0.00027397,2]
[327441309,1716077442923,-500.0,0.00027397,2]
[327441310,1716077442932,-500.0,0.00027397,2]
[327441311,1716077442942,-500.0,0.00027397,2]
[327441312,1716077442951,-500.0,0.00027397,2]
[327441313,1716077442960,-500.0,0.00027397,2]
[327441314,1716077442970,-675.58,0.00027397,2]
[327441315,1716077442979,-500.0,0.00027397,2]
[327441316,1716077442988,-500.0,0.00027397,2]
[327441318,1716077442997,-500.0,0.00027397,2]
[327441320,1716077443007,-500.0,0.00027397,2]
[327441322,1716077443016,-892.52,0.00027397,2]
[327441324,1716077443026,-500.0,0.00027397,2]
[327441325,1716077443035,-500.0,0.00027397,2]
[327441327,1716077443044,-500.0,0.00027397,2]
[327441329,1716077443054,-500.0,0.00027397,2]
[327441330,1716077443064,-500.0,0.00027397,2]
[327441331,1716077443073,-696.4,0.00027397,2]
[327441332,1716077443082,-659.15,0.00027397,2]
[327441334,1716077443092,-500.0,0.00027397,2]
[327441336,1716077443101,-975.45,0.00027397,2]
[327441339,1716077443111,-500.0,0.00027397,2]
[327441342,1716077443120,-500.0,0.00027397,2]
[327441345,1716077443129,-500.0,0.00027397,2]
[327441347,1716077443139,-637.96234032,0.00027397,2]
[327441351,1716077443149,-500.0,0.00027397,2]
[327441354,1716077443158,-500.0,0.00027397,2]
[327441355,1716077443168,-500.0,0.00027397,2]
[327441356,1716077443177,-500.0,0.00027397,2]
[327441357,1716077443187,-500.0,0.00027397,2]
[327441358,1716077443196,-500.0,0.00027397,2]
[327441359,1716077443207,-500.0,0.00027397,2]
[327441360,1716077443216,-500.0,0.00027397,2]
[327441361,1716077443225,-500.0,0.00027397,2]
[327441362,1716077443235,-500.0,0.00027397,2]
[327441363,1716077443244,-500.0,0.00027397,2]
[327441364,1716077443254,-500.0,0.00027397,2]
[327441365,1716077443263,-500.0,0.00027397,2]
[327441366,1716077443272,-500.0,0.00027397,2]
[327441367,1716077443282,-500.0,0.00027397,2]
[327441368,1716077443291,-500.0,0.00027397,2]
[327441369,1716077443301,-667.44,0.00027397,2]
[327441370,1716077443309,-500.0,0.00027397,2]
[327441371,1716077443320,-500.0,0.00027397,2]
[327441372,1716077443329,-500.0,0.00027397,2]
[327441373,1716077443339,-500.0,0.00027397,2]
[327441374,1716077443348,-500.0,0.00027397,2]
[327441375,1716077443358,-500.0,0.00027397,2]
[327441376,1716077443368,-500.0,0.00027397,2]
[327441377,1716077443377,-500.0,0.00027397,2]
[327441378,1716077443386,-619.54,0.00027397,2]
[327441379,1716077443396,-500.0,0.00027397,2]
[327441380,1716077443405,-500.0,0.00027397,2]
[327441381,1716077443414,-849.47,0.00027397,2]
[327441382,1716077443424,-690.93,0.00027397,2]
[327441383,1716077443433,-500.0,0.00027397,2]
[327441384,1716077443442,-500.0,0.00027397,2]
[327441385,1716077443451,-507.16768072,0.00027397,2]
[327441386,1716077443461,-500.0,0.00027397,2]
[327441387,1716077443470,-500.0,0.00027397,2]
[327441388,1716077443479,-506.13140164,0.00027397,2]
[327441389,1716077443489,-902.26,0.00027397,2]
[327441390,1716077443498,-500.0,0.00027397,2]
[327441391,1716077443507,-500.0,0.00027397,2]
[327441392,1716077443516,-500.0,0.00027397,2]
[327441393,1716077443526,-500.0,0.00027397,2]
[327441394,1716077443535,-500.0,0.00027397,2]
[327441395,1716077443544,-500.0,0.00027397,2]
[327441396,1716077443554,-855.55,0.00027397,2]
[327441397,1716077443563,-500.0,0.00027397,2]
[327441398,1716077443574,-500.0,0.00027397,2]
[327441399,1716077443583,-598.35699507,0.00027397,2]
[327441400,1716077443592,-500.0,0.00027397,2]
[327441401,1716077443601,-500.0,0.00027397,2]
[327441402,1716077443610,-1068.89,0.00027397,2]
[327441403,1716077443620,-1577.42,0.00027397,2]
[327441404,1716077443629,-500.0,0.00027397,2]
[327441405,1716077443639,-500.0,0.00027397,2]
[327441406,1716077443649,-434.93935768,0.00027397,2]
[327441407,1716077443658,-500.0,0.00027397,2]
[327441408,1716077443667,-500.0,0.00027397,2]
[327441409,1716077443681,-500.0,0.00027397,2]
[327441410,1716077443691,-500.0,0.00027397,2]
[327441411,1716077443700,-500.0,0.00027397,2]
[327441412,1716077443709,-500.0,0.00027397,2]
[327441414,1716077443719,-500.0,0.00027397,2]
[327441415,1716077443728,-820.23,0.00027397,2]
[327441416,1716077443738,-508.23,0.00027397,2]
[327441417,1716077443749,-500.0,0.00027397,2]
[327441418,1716077443759,-500.0,0.00027397,2]
[327441419,1716077443768,-500.0,0.00027397,2]
[327441420,1716077443778,-500.0,0.00027397,2]
[327441421,1716077443787,-609.88,0.00027397,2]
[327441422,1716077443796,-500.0,0.00027397,2]
[327441423,1716077443806,-154.36476834,0.00027397,2]
[327441424,1716077443816,-500.0,0.00027397,2]
[327441425,1716077443825,-500.0,0.00027397,2]
[327441426,1716077443835,-765.81,0.00027397,2]
[327441427,1716077443844,-500.0,0.00027397,2]
[327441428,1716077443853,-500.0,0.00027397,2]
[327441429,1716077443862,-500.0,0.00027397,2]
[327441430,1716077443872,-500.0,0.00027397,2]
[327441431,1716077443881,-500.0,0.00027397,2]
[327441432,1716077443890,-500.0,0.00027397,2]
[327441433,1716077443900,-500.0,0.00027397,2]
[327441434,1716077443909,-500.0,0.00027397,2]
[327441435,1716077443918,-500.0,0.00027397,2]
[327441436,1716077443928,-500.0,0.00027397,2]
[327441437,1716077443938,-500.0,0.00027397,2]
[327441438,1716077443947,-500.0,0.00027397,2]
[327441439,1716077443956,-774.08,0.00027397,2]
[327441440,1716077443966,-500.44559614,0.00027397,2]
[327441441,1716077443975,-750.89,0.00027397,2]
[327441442,1716077443985,-500.0,0.00027397,2]
[327441443,1716077443994,-500.0,0.00027397,2]
[327441444,1716077444004,-500.0,0.00027397,2]
[327441445,1716077444013,-500.0,0.00027397,2]
[327441446,1716077444023,-1264.74,0.00027397,2]
[327441447,1716077444032,-500.0,0.00027397,2]
[327441448,1716077444041,-500.0,0.00027397,2]
[327441449,1716077444050,-732.31,0.00027397,2]
[327441450,1716077444060,-500.0,0.00027397,2]
[327441451,1716077444069,-500.0,0.00027397,2]
[327441452,1716077444078,-500.0,0.00027397,2]
[327441453,1716077444087,-500.0,0.00027397,2]
[327441454,1716077444096,-500.0,0.00027397,2]
[327441455,1716077444105,-961.36,0.00027397,2]
[327441456,1716077444115,-503.70298916,0.00027397,2]
[327441457,1716077444125,-1397.82,0.00027397,2]
[327441458,1716077444134,-500.0,0.00027397,2]
[327441459,1716077444144,-620.55,0.00027397,2]
[327441460,1716077444153,-500.0,0.00027397,2]
[327441461,1716077444162,-500.0,0.00027397,2]
[327441462,1716077444171,-500.0,0.00027397,2]
[327441463,1716077444180,-500.0,0.00027397,2]
[327441464,1716077444190,-500.0,0.00027397,2]
[327441465,1716077444199,-500.0,0.00027397,2]
[327441466,1716077444209,-500.0,0.00027397,2]
[327441467,1716077444218,-215.9248245,0.00027397,2]
[327441468,1716077444227,-500.0,0.00027397,2]
[327441469,1716077444237,-788.47,0.00027397,2]
[327441470,1716077444246,-500.0,0.00027397,2]
[327441471,1716077444255,-702.58,0.00027397,2]
[327441472,1716077444264,-406.69,0.00027397,2]
[327441473,1716077444274,-500.0,0.00027397,2]
[327441474,1716077444283,-717.76,0.00027397,2]
[327441475,1716077444292,-1107.18,0.00027397,2]
[327441476,1716077444301,-500.0,0.00027397,2]
[327441477,1716077444310,-500.0,0.00027397,2]
[327441478,1716077444320,-500.0,0.00027397,2]
[327441479,1716077444330,-500.0,0.00027397,2]
[327441480,1716077444340,-499.70242659,0.00027397,2]
[327441481,1716077444349,-1418.57,0.00027397,2]
[327441482,1716077444358,-500.0,0.00027397,2]
[327441483,1716077444368,-500.0,0.00027397,2]
[327441484,1716077444377,-500.0,0.00027397,2]
[327441485,1716077444386,-548.41,0.00027397,2]
[327441486,1716077444395,-512.63876573,0.00027397,2]
[327441487,1716077444405,-500.0,0.00027397,2]
[327441488,1716077444414,-500.0,0.00027397,2]
[327441489,1716077444423,-500.0,0.00027397,2]
[327441490,1716077444432,-731.89,0.00027397,2]
[327441491,1716077444442,-654.67,0.00027397,2]
[327441492,1716077444451,-500.0,0.00027397,2]
[327441493,1716077444461,-500.0,0.00027397,2]
[327441494,1716077444470,-575.3,0.00027397,2]
[327441495,1716077444479,-500.0,0.00027397,2]
[327441496,1716077444489,-500.0,0.00027397,2]
[327441497,1716077444499,-500.0,0.00027397,2]
[327441498,1716077444509,-753.87,0.00027397,2]
[327441499,1716077444519,-558.06,0.00027397,2]
[327441500,1716077444528,-500.0,0.00027397,2]
[327441501,1716077444537,-500.0,0.00027397,2]
[327441502,1716077444547,-500.0,0.00027397,2]
[327441503,1716077444556,-500.0,0.00027397,2]
[327441504,1716077444566,-500.0,0.00027397,2]
[327441505,1716077444576,-500.0,0.00027397,2]
[327441506,1716077444585,-509.96527651,0.00027397,2]
[327441507,1716077444595,-592.45,0.00027397,2]
[327441508,1716077444604,-500.0,0.00027397,2]
[327441509,1716077444613,-500.0,0.00027397,2]
[327441510,1716077444623,-1470.72,0.00027397,2]
[327441511,1716077444633,-500.0,0.00027397,2]
[327441512,1716077444642,-500.0,0.00027397,2]
[327441513,1716077444652,-500.0,0.00027397,2]
[327441514,1716077444662,-543.75239111,0.00027397,2]
[327441515,1716077444672,-897.8,0.00027397,2]
[327441516,1716077444686,-735.2,0.00027397,2]
[327441517,1716077444695,-500.0,0.00027397,2]
[327441518,1716077444704,-500.0,0.00027397,2]
[327441519,1716077444715,-500.0,0.00027397,2]
[327441520,1716077444724,-500.0,0.00027397,2]
[327441521,1716077444734,-500.0,0.00027397,2]
[327441522,1716077444744,-500.0,0.00027397,2]
[327441523,1716077444753,-500.0,0.00027397,2]
[327441524,1716077444764,-1194.38,0.00027397,2]
[327441525,1716077444774,-439.61436047,0.00027397,2]
[327441526,1716077444783,-894.37,0.00027397,2]
[327441527,1716077444792,-500.0,0.00027397,2]
[327441528,1716077444801,-567.91,0.00027397,2]
[327441529,1716077444811,-500.0,0.00027397,2]
[327441530,1716077444820,-1413.9,0.00027397,2]
[327441531,1716077444829,-500.0,0.00027397,2]
[327441532,1716077444839,-838.92,0.00027397,2]
[327441533,1716077445048,-579.0,0.00027397,2]
[327441534,1716077445058,-500.0,0.00027397,2]
[327441535,1716077445069,-500.0,0.00027397,2]
[327441536,1716077445078,-1047.05,0.00027397,2]
[327441537,1716077445087,-1288.52,0.00027397,2]
[327441538,1716077445097,-512.22,0.00027397,2]
[327441539,1716077445106,-500.0,0.00027397,2]
[327441540,1716077445116,-737.25,0.00027397,2]
[327441541,1716077445125,-500.0,0.00027397,2]
[327441542,1716077445135,-973.22,0.00027397,2]
[327441543,1716077445145,-1081.43,0.00027397,2]
[327441544,1716077445155,-500.0,0.00027397,2]
[327441545,1716077445164,-539.38,0.00027397,2]
[327441546,1716077445174,-500.0,0.00027397,2]
[327441547,1716077445183,-500.0,0.00027397,2]
[327441548,1716077445193,-500.0,0.00027397,2]
[327441549,1716077445203,-500.0,0.00027397,2]
[327441550,1716077445212,-771.25,0.00027397,2]
[327441551,1716077445221,-804.0,0.00027397,2]
[327441552,1716077445231,-192.89860486,0.00027397,2]
[327441553,1716077445241,-500.0,0.00027397,2]
[327441554,1716077445251,-620.78,0.00027397,2]
[327441555,1716077445260,-500.0,0.00027397,2]
[327441556,1716077445270,-500.0,0.00027397,2]
[327441557,1716077445279,-500.0,0.00027397,2]
[327441558,1716077445289,-500.0,0.00027397,2]
[327441559,1716077445298,-500.0,0.00027397,2]
[327441560,1716077445308,-500.0,0.00027397,2]
[327441561,1716077445318,-500.0,0.00027397,2]
[327441562,1716077445327,-501.17,0.00027397,2]
[327441563,1716077445336,-500.0,0.00027397,2]
[327441564,1716077445346,-500.0,0.00027397,2]
[327441565,1716077445355,-500.0,0.00027397,2]
[327441566,1716077445365,-500.0,0.00027397,2]
[327441567,1716077445375,-500.0,0.00027397,2]
[327441568,1716077445384,-500.0,0.00027397,2]
[327441569,1716077445394,-500.0,0.00027397,2]
[327441570,1716077445403,-500.0,0.00027397,2]
[327441571,1716077445412,-500.0,0.00027397,2]
[327441572,1716077445422,-500.0,0.00027397,2]
[327441573,1716077445432,-500.0,0.00027397,2]
[327441574,1716077445441,-500.0,0.00027397,2]
[327441575,1716077445451,-500.0,0.00027397,2]
[327441576,1716077445461,-862.09,0.00027397,2]
[327441577,1716077445470,-500.0,0.00027397,2]
[327441578,1716077445480,-500.0,0.00027397,2]
[327441579,1716077445489,-500.0,0.00027397,2]
[327441580,1716077445498,-500.0,0.00027397,2]
[327441581,1716077445508,-500.0,0.00027397,2]
[327441582,1716077445517,-500.0,0.00027397,2]
[327441583,1716077445526,-596.95,0.00027397,2]
[327441584,1716077445536,-513.69309795,0.00027397,2]
[327441585,1716077445546,-500.0,0.00027397,2]
[327441586,1716077445555,-500.0,0.00027397,2]
[327441587,1716077445566,-881.6,0.00027397,2]
[327441588,1716077445575,-500.0,0.00027397,2]
[327441589,1716077445584,-720.84,0.00027397,2]
[327441590,1716077445594,-500.0,0.00027397,2]
[327441591,1716077445603,-662.13,0.00027397,2]
[327441592,1716077445613,-500.0,0.00027397,2]
[327441593,1716077445622,-500.0,0.00027397,2]
[327441594,1716077445631,-2975.3,0.00027397,2]
[327441595,1716077445641,-500.0,0.00027397,2]
[327441596,1716077445651,-500.0,0.00027397,2]
[327441597,1716077445661,-500.0,0.00027397,2]
[327441598,1716077445670,-500.0,0.00027397,2]
[327441599,1716077445684,-500.0,0.00027397,2]
[327441600,1716077445693,-500.0,0.00027397,2]
[327441601,1716077445703,-1121.07,0.00027397,2]
[327441602,1716077445712,-500.0,0.00027397,2]
[327441603,1716077445722,-500.0,0.00027397,2]
[327441604,1716077445732,-500.0,0.00027397,2]
[327441605,1716077445741,-875.83,0.00027397,2]
[327441606,1716077445752,-500.0,0.00027397,2]
[327441607,1716077445761,-500.0,0.00027397,2]
[327441608,1716077445771,-500.0,0.00027397,2]
[327441609,1716077445780,-500.0,0.00027397,2]
[327441610,1716077445790,-1130.37,0.00027397,2]
[327441611,1716077445799,-695.7,0.00027397,2]
[327441612,1716077445809,-1392.95,0.00027397,2]
[327441613,1716077445818,-500.0,0.00027397,2]
[327441614,1716077445827,-500.0,0.00027397,2]
[327441615,1716077445838,-500.0,0.00027397,2]
[327441616,1716077445847,-698.81,0.00027397,2]
[327441617,1716077445857,-791.91,0.00027397,2]
[327441618,1716077445866,-500.0,0.00027397,2]
[327441620,1716077445875,-500.0,0.00027397,2]
[327441622,1716077445884,-500.0,0.00027397,2]
[327441623,1716077445894,-500.0,0.00027397,2]
[327441624,1716077445903,-500.0,0.00027397,2]
[327441625,1716077445913,-500.0,0.00027397,2]
[327441626,1716077445923,-1456.87,0.00027397,2]
[327441627,1716077445932,-274.64346877,0.00027397,2]
[327441628,1716077445941,-1314.57,0.00027397,2]
[327441629,1716077445950,-2275.44,0.00027397,2]
[327441630,1716077445960,-574.86,0.00027397,2]
[327441631,1716077445969,-500.0,0.00027397,2]
[327441632,1716077445978,-500.0,0.00027397,2]
[327441633,1716077445988,-2814.42,0.00027397,2]
[327441634,1716077445997,-511.71,0.00027397,2]
[327441635,1716077446006,-500.0,0.00027397,2]
[327441636,1716077446015,-500.0,0.00027397,2]
[327441637,1716077446024,-501.32,0.00027397,2]
[327441638,1716077446033,-500.0,0.00027397,2]
[327441639,1716077446043,-1303.92,0.00027397,2]
[327441640,1716077446052,-500.0,0.00027397,2]
[327441641,1716077446062,-810.63,0.00027397,2]
[327441643,1716077446071,-500.0,0.00027397,2]
[327441644,1716077446081,-500.0,0.00027397,2]
[327441645,1716077446090,-500.0,0.00027397,2]
[327441646,1716077446100,-500.0,0.00027397,2]
[327441647,1716077446109,-500.0,0.00027397,2]
[327441648,1716077446121,-500.0,0.00027397,2]
[327441649,1716077446131,-500.0,0.00027397,2]
[327441650,1716077446141,-4678.13,0.00027397,2]
[327441651,1716077446150,-500.0,0.00027397,2]
[327441652,1716077446159,-2780.12,0.00027397,2]
[327441653,1716077446169,-516.01,0.00027397,2]
[327441654,1716077446179,-887.4,0.00027397,2]
[327441655,1716077446189,-500.0,0.00027397,2]
[327441656,1716077446198,-451.17932619,0.00027397,2]
[327441657,1716077446207,-514.0,0.00027397,2]
[327441658,1716077446217,-725.59,0.00027397,2]
[327441659,1716077446226,-500.0,0.00027397,2]
[327441660,1716077446236,-1154.5,0.00027397,2]
[327441661,1716077446246,-500.0,0.00027397,2]
[327441662,1716077446255,-1503.52,0.00027397,2]
[327441663,1716077446264,-567.60606817,0.00027397,2]
[327441664,1716077446274,-500.0,0.00027397,2]
[327441665,1716077446284,-1444.2,0.00027397,2]
[327441666,1716077446293,-500.0,0.00027397,2]
[327441667,1716077446302,-500.0,0.00027397,2]
[327441668,1716077446312,-1032.28,0.00027397,2]
[327441669,1716077446323,-500.0,0.00027397,2]
[327441670,1716077446332,-500.0,0.00027397,2]
[327441671,1716077446342,-500.0,0.00027397,2]
[327441672,1716077446351,-500.0,0.00027397,2]
[327441673,1716077446360,-1522.9,0.00027397,2]
[327441674,1716077446370,-561.95,0.00027397,2]
[327441675,1716077446379,-7233.9,0.00027397,2]
[327441676,1716077446388,-776.17,0.00027397,2]
[327441677,1716077446397,-500.0,0.00027397,2]
[327441678,1716077446406,-605.79,0.00027397,2]
[327441679,1716077446415,-500.0,0.00027397,2]
[327441680,1716077446424,-1300.37,0.00027397,2]
[327441681,1716077446433,-1051.93,0.00027397,2]
[327441682,1716077446443,-500.0,0.00027397,2]
[327441683,1716077446453,-6024.88,0.00027397,2]
[327441684,1716077446462,-500.0,0.00027397,2]
[327441685,1716077446471,-5592.85,0.00027397,2]
[327441686,1716077446481,-500.0,0.00027397,2]
[327441687,1716077446490,-500.0,0.00027397,2]
[327441688,1716077446499,-1220.15,0.00027397,2]
[327441689,1716077446508,-11547.64,0.00027397,2]
[327441690,1716077446517,-500.0,0.00027397,2]
[327441691,1716077446526,-500.0,0.00027397,2]
[327441692,1716077446535,-500.0,0.00027397,2]
[327441693,1716077446545,-500.0,0.00027397,2]
[327441694,1716077446556,-500.0,0.00027397,2]
[327441695,1716077446566,-964.95,0.00027397,2]
[327441696,1716077446576,-500.0,0.00027397,2]
[327441697,1716077446586,-730.61,0.00027397,2]
[327441698,1716077446595,-500.0,0.00027397,2]
[327441699,1716077446604,-500.0,0.00027397,2]
[327441700,1716077446614,-684.37,0.00027397,2]
[327441701,1716077446624,-500.0,0.00027397,2]
[327441702,1716077446633,-2185.64,0.00027397,2]
[327441703,1716077446643,-500.0,0.00027397,2]
[327441704,1716077446653,-1150.67,0.00027397,2]
[327441705,1716077446662,-500.0,0.00027397,2]
[327441706,1716077446674,-500.0,0.00027397,2]
[327441707,1716077446685,-922.42,0.00027397,2]
[327441708,1716077446694,-500.0,0.00027397,2]
[327441709,1716077446704,-714.21,0.00027397,2]
[327441710,1716077446714,-224.36875559,0.00027397,2]
[327441711,1716077446725,-500.0,0.00027397,2]
[327441712,1716077446734,-667.74,0.00027397,2]
[327441713,1716077446744,-500.0,0.00027397,2]
[327441714,1716077446756,-500.0,0.00027397,2]
[327441715,1716077446766,-624.56,0.00027397,2]
[327441716,1716077446775,-500.0,0.00027397,2]
[327441717,1716077446785,-500.0,0.00027397,2]
[327441718,1716077446795,-500.0,0.00027397,2]
[327441719,1716077446805,-785.83,0.00027397,2]
[327441720,1716077446814,-500.0,0.00027397,2]
[327441721,1716077446826,-500.0,0.00027397,2]
[327441722,1716077446835,-1993.35,0.00027397,2]
[327441723,1716077446845,-500.0,0.00027397,2]
[327441724,1716077446854,-500.0,0.00027397,2]
[327441725,1716077446864,-500.0,0.00027397,2]
[327441726,1716077446873,-500.0,0.00027397,2]
[327441727,1716077446883,-593.18,0.00027397,2]
[327441728,1716077446892,-500.0,0.00027397,2]
[327441729,1716077446902,-500.0,0.00027397,2]
[327441730,1716077446911,-555.98,0.00027397,2]
[327441731,1716077446921,-500.0,0.00027397,2]
[327441732,1716077446931,-500.0,0.00027397,2]
[327441733,1716077446940,-708.12,0.00027397,2]
[327441734,1716077446950,-1034.98,0.00027397,2]
[327441735,1716077446959,-500.0,0.00027397,2]
[327441736,1716077446969,-500.0,0.00027397,2]
[327441737,1716077446978,-819.64,0.00027397,2]
[327441738,1716077446988,-500.0,0.00027397,2]
[327441739,1716077446997,-1062.72,0.00027397,2]
[327441740,1716077447007,-500.0,0.00027397,2]
[327441741,1716077447016,-614.07,0.00027397,2]
[327441742,1716077447026,-500.0,0.00027397,2]
[327441743,1716077447036,-500.0,0.00027397,2]
[327441744,1716077447045,-500.0,0.00027397,2]
[327441745,1716077447055,-609.38,0.00027397,2]
[327441746,1716077447064,-500.0,0.00027397,2]
[327441747,1716077447077,-6648.46,0.00027397,2]
[327441748,1716077447086,-1688.51,0.00027397,2]
[327441749,1716077447095,-500.0,0.00027397,2]
[327441750,1716077447104,-564.19,0.00027397,2]
[327441751,1716077447114,-1089.3,0.00027397,2]
[327441752,1716077447124,-1349.04,0.00027397,2]
[327441753,1716077447133,-262.05626811,0.00027397,2]
[327441754,1716077447143,-846.78,0.00027397,2]
[327441755,1716077447152,-1553.34,0.00027397,2]
[327441756,1716077447161,-830.23,0.00027397,2]
[327441757,1716077447171,-860.44,0.00027397,2]
[327441758,1716077447181,-1308.68,0.00027397,2]
[327441759,1716077447191,-500.0,0.00027397,2]
[327441760,1716077447200,-608.58,0.00027397,2]
[327441761,1716077447209,-812.28,0.00027397,2]
[327441762,1716077447219,-500.0,0.00027397,2]
[327441763,1716077447228,-500.0,0.00027397,2]
[327441764,1716077447237,-792.67,0.00027397,2]
[327441765,1716077447247,-500.0,0.00027397,2]
[327441766,1716077447257,-500.0,0.00027397,2]
[327441767,1716077447266,-1716.02,0.00027397,2]
[327441768,1716077447275,-613.67,0.00027397,2]
[327441769,1716077447284,-2023.97,0.00027397,2]
[327441770,1716077447294,-500.0,0.00027397,2]
[327441771,1716077447303,-616.74,0.00027397,2]
[327441772,1716077447313,-673.43,0.00027397,2]
[327441773,1716077447325,-4593.99,0.00027397,2]
[327441774,1716077447335,-500.0,0.00027397,2]
[327441775,1716077447344,-500.0,0.00027397,2]
[327441776,1716077447353,-500.0,0.00027397,2]
[327441777,1716077447425,-519.79,0.00027397,2]
[327441778,1716077447435,-525.03,0.00027397,2]
[327441779,1716077447444,-500.0,0.00027397,2]
[327441780,1716077447453,-504.14641482,0.00027397,2]
[327441781,1716077447463,-500.0,0.00027397,2]
[327441782,1716077447473,-1670.46,0.00027397,2]
[327441783,1716077447482,-703.22,0.00027397,2]
[327441784,1716077447491,-500.0,0.00027397,2]
[327441785,1716077447500,-500.0,0.00027397,2]
[327441786,1716077447509,-500.0,0.00027397,2]
[327441787,1716077447519,-500.0,0.00027397,2]
[327441788,1716077447529,-936.93,0.00027397,2]
[327441789,1716077447538,-500.0,0.00027397,2]
[327441790,1716077447548,-894.82,0.00027397,2]
[327441791,1716077447557,-500.0,0.00027397,2]
[327441792,1716077447567,-500.0,0.00027397,2]
[327441793,1716077447576,-500.0,0.00027397,2]
[327441794,1716077447585,-500.0,0.00027397,2]
[327441795,1716077447595,-529.43990547,0.00027397,2]
[327441796,1716077447604,-500.0,0.00027397,2]
[327441797,1716077447614,-529.9474768,0.00027397,2]
[327441798,1716077447623,-695.82,0.00027397,2]
[327441799,1716077447633,-715.76,0.00027397,2]
[327441800,1716077447642,-3124.26,0.00027397,2]
[327441801,1716077447651,-500.0,0.00027397,2]
[327441802,1716077447661,-510.06,0.00027397,2]
[327441803,1716077447670,-500.0,0.00027397,2]
[327441804,1716077447685,-877.57,0.00027397,2]
[327441805,1716077447694,-500.0,0.00027397,2]
[327441806,1716077447704,-500.0,0.00027397,2]
[327441807,1716077447715,-500.0,0.00027397,2]
[327441808,1716077447724,-1656.39,0.00027397,2]
[327441809,1716077447734,-500.0,0.00027397,2]
[327441810,1716077447743,-500.0,0.00027397,2]
[327441811,1716077447756,-500.0,0.00027397,2]
[327441812,1716077447765,-743.1,0.00027397,2]
[327441813,1716077447774,-500.0,0.00027397,2]